fUSD/lending_fUSD_20250923
["ID","MTS","AMOUNT","RATE_DAILY","PERIOD"]
[387236209,1758664267959,-400.0,0.00024931,3]
[387236210,1758664267972,-471.06,0.00024931,3]
[387236211,1758664267982,-440.49,0.00024931,3]
[387236212,1758664267991,-1632.87,0.00024931,3]
[387236213,1758664268000,-2172.06,0.00024931,3]
[387236214,1758664268009,-1577.53,0.00024931,3]
[387236215,1758664268019,-1762.21,0.00024931,3]
[387236216,1758664268028,-573.43,0.00024931,3]
[387236217,1758664268037,-400.0,0.00024931,3]
[387236218,1758664268046,-2598.87,0.00024931,3]
[387236219,1758664268055,-400.0,0.00024931,3]
[387236220,1758664268064,-2106.48,0.00024931,3]
[387236221,1758664268074,-400.0,0.00024931,3]
[387236222,1758664268083,-2137.16,0.00024931,3]
[387236223,1758664268096,-151.0,0.00024931,7]
[387236224,1758664268107,-151.0,0.00024931,7]
[387236225,1758664268116,-400.0,0.00024931,3]
[387236226,1758664268124,-151.0,0.00024931,7]
[387236227,1758664268133,-1633.99,0.00024931,3]
[387236228,1758664268143,-665.33,0.00024931,3]
[387236229,1758664268153,-151.0,0.00024931,7]
[387236230,1758664268162,-400.0,0.00024931,3]
[387236231,1758664268171,-400.0,0.00024931,3]
[387236232,1758664268181,-507.04,0.00024931,3]
[387236233,1758664268190,-2272.09,0.00024931,3]
[387236234,1758664268199,-400.0,0.00024931,3]
[387236235,1758664268208,-400.0,0.00024931,3]
[387236236,1758664268218,-652.14,0.00024931,3]
[387236237,1758664268227,-400.0,0.00024931,3]
[387236238,1758664268236,-441.78,0.00024931,3]
[387236239,1758664268245,-2095.57,0.00024931,3]
[387236240,1758664268255,-400.0,0.00024931,3]
[387236241,1758664268264,-2047.84,0.00024931,3]
[387236242,1758664268273,-425.92,0.00024931,3]
[387236243,1758664268282,-782.31,0.00024931,3]
[387236244,1758664268291,-400.0,0.00024931,3]
[387236245,1758664268300,-400.0,0.00024931,3]
[387236246,1758664268309,-400.0,0.00024931,3]
[387236247,1758664268319,-1845.88,0.00024931,3]
[387236248,1758664268328,-1531.58,0.00024931,3]
[387236249,1758664268337,-1188.08,0.00024931,3]
[387236250,1758664268346,-400.0,0.00024931,3]
[387236251,1758664268354,-1490.46,0.00024931,3]
[387236252,1758664268367,-400.0,0.00024931,3]
[387236253,1758664268375,-2033.65,0.00024931,3]
[387236254,1758664268382,-400.0,0.00024931,3]
[387236255,1758664268390,-400.0,0.00024931,3]
[387236256,1758664268400,-400.0,0.00024931,3]
[387236257,1758664268409,-2177.65,0.00024931,3]
[387236258,1758664268418,-400.0,0.00024931,3]
[387236259,1758664268427,-400.0,0.00024931,3]
[387236260,1758664268437,-400.0,0.00024931,3]
[387236261,1758664268446,-2728.22,0.00024931,3]
[387236262,1758664268456,-400.0,0.00024931,3]
[387236263,1758664268465,-417.31126351,0.00024931,3]
[387236264,1758664268474,-457.97,0.00024931,3]
[387236265,1758664268483,-1312.62,0.00024931,3]
[387236266,1758664268492,-457.97,0.00024931,3]
[387236267,1758664268502,-400.0,0.00024931,3]
[387236268,1758664268512,-1405.11,0.00024931,3]
[387236269,1758664268521,-680.61,0.00024931,3]
[387236270,1758664268531,-216.032588,0.00024931,7]
[387236271,1758664268540,-1113.08,0.00024931,3]
[387236272,1758664268550,-216.032588,0.00024931,7]
[387236273,1758664268560,-1415.66,0.00024931,3]
[387236274,1758664268569,-216.032588,0.00024931,7]
[387236275,1758664268579,-216.032588,0.00024931,7]
[387236276,1758664268589,-1698.64,0.00024931,3]
[387236277,1758664268599,-216.032588,0.00024931,7]
[387236278,1758664268608,-216.032588,0.00024931,7]
[387236279,1758664268617,-1079.65,0.00024931,3]
[387236280,1758664268626,-769.12,0.00024931,3]
[387236281,1758664268636,-216.032588,0.00024931,7]
[387236282,1758664268645,-400.0,0.00024931,3]
[387236283,1758664268654,-216.032588,0.00024931,7]
[387236284,1758664268663,-916.94,0.00024931,3]
[387236285,1758664268673,-492.23,0.00024931,3]
[387236286,1758664268682,-400.0,0.00024931,3]
[387236287,1758664268691,-2186.72,0.00024931,3]
[387236288,1758664268701,-400.0,0.00024931,3]
[387236289,1758664268710,-546.81,0.00024931,3]
[387236290,1758664268719,-400.0,0.00024931,3]
[387236291,1758664268728,-151.0,0.00024931,7]
[387236292,1758664268737,-485.45,0.00024931,3]
[387236293,1758664268747,-151.0,0.00024931,7]
[387236294,1758664268756,-952.65,0.00024931,3]
[387236295,1758664268765,-400.0,0.00024931,3]
[387236296,1758664268774,-643.52,0.00024931,3]
[387236297,1758664268783,-151.0,0.00024931,7]
[387236298,1758664268792,-151.0,0.00024931,7]
[387236299,1758664268802,-400.0,0.00024931,3]
[387236300,1758664268811,-400.0,0.00024931,3]
[387236301,1758664268821,-151.0,0.00024931,7]
[387236302,1758664268830,-151.0,0.00024931,7]
[387236303,1758664268839,-151.0,0.00024931,7]
[387236304,1758664268848,-1510.65,0.00024931,3]
[387236305,1758664268858,-151.0,0.00024931,7]
[387236306,1758664268867,-1538.99,0.00024931,3]
[387236307,1758664268876,-400.0,0.00024931,3]
[387236308,1758664268885,-400.0,0.00024931,3]
[387236309,1758664268894,-400.0,0.00024931,3]
[387236310,1758664268903,-400.0,0.00024931,3]
[387236311,1758664268912,-400.0,0.00024931,3]
[387236312,1758664268921,-151.0,0.00024931,7]
[387236313,1758664268931,-151.0,0.00024931,7]
[387236314,1758664268940,-151.0,0.00024931,7]
[387236315,1758664268948,-151.0,0.00024931,7]
[387236316,1758664268958,-151.0,0.00024931,7]
[387236317,1758664268967,-151.0,0.00024931,7]
[387236318,1758664268976,-767.66,0.00024931,3]
[387236319,1758664268985,-298.46316,0.00024931,7]
[387236320,1758664268994,-400.0,0.00024931,3]
[387236321,1758664269004,-151.0,0.00024931,7]
[387236322,1758664269013,-151.0,0.00024931,7]
[387236323,1758664269023,-151.0,0.00024931,7]
[387236324,1758664269032,-151.0,0.00024931,7]
[387236325,1758664269042,-151.0,0.00024931,7]
[387236326,1758664269051,-151.0,0.00024931,7]
[387236327,1758664269061,-1183.46,0.00024931,3]
[387236328,1758664269071,-151.0,0.00024931,7]
[387236329,1758664269080,-1576.62,0.00024931,3]
[387236330,1758664269090,-151.0,0.00024931,7]
[387236331,1758664269099,-151.0,0.00024931,7]
[387236332,1758664269107,-246.35268,0.00024931,7]
[387236333,1758664269116,-151.0,0.00024931,7]
[387236334,1758664269125,-1025.71,0.00024931,3]
[387236335,1758664269134,-1292.75,0.00024931,3]
[387236336,1758664269143,-151.0,0.00024931,7]
[387236337,1758664269152,-151.0,0.00024931,7]
[387236338,1758664269161,-151.0,0.00024931,7]
[387236339,1758664269171,-151.0,0.00024931,7]
[387236340,1758664269180,-151.0,0.00024931,7]
[387236341,1758664269189,-151.0,0.00024931,7]
[387236342,1758664269198,-151.0,0.00024931,7]
[387236343,1758664269207,-151.0,0.00024931,7]
[387236344,1758664269216,-151.0,0.00024931,7]
[387236345,1758664269225,-151.0,0.00024931,7]
[387236346,1758664269234,-400.0,0.00024931,3]
[387236347,1758664269243,-400.0,0.00024931,3]
[387236348,1758664269253,-151.0,0.00024931,7]
[387236349,1758664269262,-151.0,0.00024931,7]
[387236350,1758664269271,-400.0,0.00024931,3]
[387236351,1758664269280,-151.0,0.00024931,7]
[387236352,1758664269289,-151.0,0.00024931,7]
[387236353,1758664269298,-151.0,0.00024931,7]
[387236354,1758664269307,-153.06848,0.00024931,7]
[387236355,1758664269316,-151.0,0.00024931,7]
[387236356,1758664269325,-151.0,0.00024931,7]
[387236357,1758664269334,-151.0,0.00024931,7]
[387236358,1758664269343,-589.78,0.00024931,3]
[387236359,1758664269353,-151.0,0.00024931,7]
[387236360,1758664269368,-198.192488,0.00024931,7]
[387236361,1758664269377,-400.0,0.00024931,3]
[387236362,1758664269388,-400.0,0.00024931,3]
[387236363,1758664269397,-400.0,0.00024931,3]
[387236364,1758664269407,-400.0,0.00024931,3]
[387236365,1758664269416,-400.0,0.00024931,3]
[387236366,1758664269426,-454.62029957,0.00024931,3]
[387236367,1758664269435,-2168.52,0.00024931,3]
[387236368,1758664269444,-400.0,0.00024931,3]
[387236369,1758664269454,-400.0,0.00024931,3]
[387236370,1758664269464,-1248.87,0.00024931,3]
[387236371,1758664269473,-1438.1,0.00024931,3]
[387236372,1758664269483,-801.34,0.00024931,3]
[387236373,1758664269492,-400.0,0.00024931,3]
[387236374,1758664269502,-411.92652507,0.00024931,3]
[387236375,1758664269511,-400.0,0.00024931,3]
[387236376,1758664269521,-400.0,0.00024931,3]
[387236377,1758664269530,-1989.17,0.00024931,3]
[387236378,1758664269540,-1355.06,0.00024931,3]
[387236379,1758664269550,-1742.92,0.00024931,3]
[387236380,1758664269560,-400.0,0.00024931,3]
[387236381,1758664269569,-1035.45,0.00024931,3]
[387236382,1758664269578,-466.56,0.00024931,3]
[387236383,1758664269588,-400.0,0.00024931,3]
[387236384,1758664269597,-1514.01,0.00024931,3]
[387236385,1758664269607,-1515.98,0.00024931,3]
[387236386,1758664269618,-1785.83,0.00024931,3]
[387236387,1758664269628,-635.55,0.00024931,3]
[387236388,1758664269637,-400.0,0.00024931,3]
[387236389,1758664269646,-400.0,0.00024931,3]
[387236390,1758664269655,-835.56,0.00024931,3]
[387236391,1758664269664,-1984.29,0.00024931,3]
[387236392,1758664269674,-400.0,0.00024931,3]
[387236393,1758664269683,-1716.89,0.00024931,3]
[387236394,1758664269692,-645.64,0.00024931,3]
[387236395,1758664269701,-786.93,0.00024931,3]
[387236396,1758664269710,-400.0,0.00024931,3]
[387236397,1758664269719,-2059.55,0.00024931,3]
[387236398,1758664269728,-400.0,0.00024931,3]
[387236399,1758664269738,-2306.45,0.00024931,3]
[387236400,1758664269747,-1545.45,0.00024931,3]
[387236401,1758664269756,-400.0,0.00024931,3]
[387236402,1758664269765,-400.0,0.00024931,3]
[387236403,1758664269774,-2095.63,0.00024931,3]
[387236404,1758664269783,-400.0,0.00024931,3]
[387236405,1758664269792,-400.0,0.00024931,3]
[387236406,1758664269802,-272.920913,0.00024931,7]
[387236407,1758664269811,-272.920913,0.00024931,7]
[387236408,1758664269820,-400.0,0.00024931,3]
[387236409,1758664269830,-1430.02,0.00024931,3]
[387236410,1758664269839,-151.0,0.00024931,7]
[387236411,1758664269849,-151.0,0.00024931,7]
[387236412,1758664269858,-400.0,0.00024931,3]
[387236413,1758664269868,-272.920913,0.00024931,7]
[387236414,1758664269877,-272.920913,0.00024931,7]
[387236415,1758664269887,-400.0,0.00024931,3]
[387236416,1758664269896,-151.0,0.00024931,7]
[387236417,1758664269906,-690.64,0.00024931,3]
[387236418,1758664269916,-272.920913,0.00024931,7]
[387236419,1758664269925,-272.920913,0.00024931,7]
[387236420,1758664269935,-400.0,0.00024931,3]
[387236421,1758664269944,-400.0,0.00024931,3]
[387236422,1758664269954,-272.920913,0.00024931,7]
[387236423,1758664269964,-909.31,0.00024931,3]
[387236424,1758664269973,-272.920913,0.00024931,7]
[387236425,1758664269987,-400.0,0.00024931,3]
[387236426,1758664269996,-1827.73,0.00024931,3]
[387236427,1758664270007,-400.0,0.00024931,3]
[387236428,1758664270016,-400.0,0.00024931,3]
[387236429,1758664270026,-400.0,0.00024931,3]
[387236430,1758664270036,-2101.8,0.00024931,3]
[387236431,1758664270045,-400.0,0.00024931,3]
[387236432,1758664270272,-655.71,0.00024931,3]
[387236433,1758664270283,-966.9,0.00024931,3]
[387236434,1758664270292,-400.0,0.00024931,3]
[387236435,1758664270303,-400.0,0.00024931,3]
[387236436,1758664270312,-5585.99,0.00024931,3]
[387236437,1758664270322,-1470.41,0.00024931,3]
[387236438,1758664270332,-603.72,0.00024931,3]
[387236439,1758664270341,-400.0,0.00024931,3]
[387236440,1758664270350,-204.51436345,0.00024931,3]
[387236441,1758664270362,-400.0,0.00024931,3]
[387236442,1758664270373,-952.78,0.00024931,3]
[387236443,1758664270383,-1883.8,0.00024931,3]
[387236444,1758664270392,-151.0,0.00024931,7]
[387236445,1758664270403,-151.0,0.00024931,7]
[387236446,1758664270413,-1867.36,0.00024931,3]
[387236447,1758664270422,-1963.55,0.00024931,3]
[387236448,1758664270431,-400.0,0.00024931,3]
[387236449,1758664270441,-151.0,0.00024931,7]
[387236450,1758664270451,-614.58,0.00024931,3]
[387236451,1758664270460,-151.0,0.00024931,7]
[387236452,1758664270470,-400.0,0.00024931,3]
[387236453,1758664270479,-400.0,0.00024931,3]
[387236454,1758664270489,-1560.6,0.00024931,3]
[387236455,1758664270498,-400.0,0.00024931,3]
[387236456,1758664270507,-400.0,0.00024931,3]
[387236457,1758664270517,-1953.23,0.00024931,3]
[387236458,1758664270526,-1674.22,0.00024931,3]
[387236459,1758664270535,-400.0,0.00024931,3]
[387236460,1758664270545,-400.0,0.00024931,3]
[387236461,1758664270555,-1508.32,0.00024931,3]
[387236462,1758664270564,-400.0,0.00024931,3]
[387236463,1758664270573,-492.65,0.00024931,3]
[387236464,1758664270583,-924.37,0.00024931,3]
[387236465,1758664270593,-400.0,0.00024931,3]
[387236466,1758664270603,-400.0,0.00024931,3]
[387236467,1758664270612,-400.0,0.00024931,3]
[387236468,1758664270622,-1865.08,0.00024931,3]
[387236469,1758664270632,-1262.69,0.00024931,3]
[387236470,1758664270642,-400.0,0.00024931,3]
[387236471,1758664270651,-1344.24,0.00024931,3]
[387236472,1758664270661,-401.62300236,0.00024931,3]
[387236473,1758664270676,-1502.94,0.00024931,3]
[387236474,1758664270685,-400.0,0.00024931,3]
[387236475,1758664270695,-1473.52,0.00024931,3]
[387236476,1758664270704,-400.0,0.00024931,3]
[387236477,1758664270713,-400.0,0.00024931,3]
[387236478,1758664270722,-400.0,0.00024931,3]
[387236479,1758664270732,-957.08,0.00024931,3]
[387236480,1758664270742,-528.66,0.00024931,3]
[387236481,1758664270751,-400.0,0.00024931,3]
[387236482,1758664270760,-552.31,0.00024931,3]
[387236483,1758664270770,-2161.43,0.00024931,3]
[387236484,1758664270779,-2128.27,0.00024931,3]
[387236485,1758664270788,-400.0,0.00024931,3]
[387236486,1758664270798,-943.67,0.00024931,3]
[387236487,1758664270810,-698.14,0.00024931,3]
[387236488,1758664270820,-1021.78,0.00024931,3]
[387236489,1758664270829,-956.83,0.00024931,3]
[387236490,1758664270839,-400.0,0.00024931,3]
[387236491,1758664270848,-7304.35,0.00024931,3]
[387236492,1758664270857,-1587.02,0.00024931,3]
[387236493,1758664270866,-400.0,0.00024931,3]
[387236494,1758664270876,-152.914564,0.00024931,7]
[387236495,1758664270885,-151.0,0.00024931,7]
[387236496,1758664270895,-428.71,0.00024931,3]
[387236497,1758664270904,-151.0,0.00024931,7]
[387236498,1758664270913,-151.0,0.00024931,7]
[387236499,1758664270923,-151.0,0.00024931,7]
[387236500,1758664270932,-1854.69,0.00024931,3]
[387236501,1758664270941,-533.26,0.00024931,3]
[387236502,1758664270951,-400.0,0.00024931,3]
[387236503,1758664270960,-151.0,0.00024931,7]
[387236504,1758664270969,-151.0,0.00024931,7]
[387236505,1758664270978,-400.0,0.00024931,3]
[387236506,1758664270987,-400.0,0.00024931,3]
[387236507,1758664270997,-675.91,0.00024931,3]
[387236508,1758664271006,-1334.3,0.00024931,3]
[387236509,1758664271016,-447.62,0.00024931,3]
[387236510,1758664271025,-400.0,0.00024931,3]
[387236511,1758664271034,-803.81,0.00024931,3]
[387236512,1758664271044,-2319.15,0.00024931,3]
[387236513,1758664271053,-400.0,0.00024931,3]
[387236514,1758664271063,-400.0,0.00024931,3]
[387236515,1758664271072,-151.0,0.00024931,7]
[387236516,1758664271082,-400.0,0.00024931,3]
[387236517,1758664271091,-1143.73,0.00024931,3]
[387236518,1758664271100,-1693.96,0.00024931,3]
[387236519,1758664271110,-400.0,0.00024931,3]
[387236520,1758664271119,-808.53,0.00024931,3]
[387236521,1758664271128,-1798.02,0.00024931,3]
[387236522,1758664271138,-400.0,0.00024931,3]
[387236523,1758664271147,-151.0,0.00024931,7]
[387236524,1758664271158,-151.0,0.00024931,7]
[387236525,1758664271167,-400.0,0.00024931,3]
[387236526,1758664271177,-151.0,0.00024931,7]
[387236527,1758664271186,-151.0,0.00024931,7]
[387236528,1758664271195,-400.0,0.00024931,3]
[387236529,1758664271205,-290.11013904,0.00024931,3]
[387236530,1758664271214,-1265.14,0.00024931,3]
[387236531,1758664271223,-400.0,0.00024931,3]
[387236532,1758664271233,-151.0,0.00024931,7]
[387236533,1758664271242,-151.0,0.00024931,7]
[387236534,1758664271251,-400.0,0.00024931,3]
[387236535,1758664271261,-151.0,0.00024931,7]
[387236536,1758664271270,-151.0,0.00024931,7]
[387236537,1758664271279,-1501.23,0.00024931,3]
[387236538,1758664271288,-493.9,0.00024931,3]
[387236539,1758664271298,-810.26,0.00024931,3]
[387236540,1758664271307,-528.22,0.00024931,3]
[387236541,1758664271316,-151.0,0.00024931,7]
[387236542,1758664271325,-480.24,0.00024931,3]
[387236543,1758664271334,-154.819096,0.00024931,7]
[387236544,1758664271344,-400.0,0.00024931,3]
[387236545,1758664271353,-400.0,0.00024931,3]
[387236546,1758664271365,-1303.69,0.00024931,3]
[387236547,1758664271375,-178.197237,0.00024931,7]
[387236548,1758664271384,-178.197237,0.00024931,7]
[387236549,1758664271393,-400.0,0.00024931,3]
[387236550,1758664271403,-400.0,0.00024931,3]
[387236551,1758664271412,-178.197237,0.00024931,7]
[387236552,1758664271421,-151.0,0.00024931,7]
[387236553,1758664271431,-178.197237,0.00024931,7]
[387236554,1758664271440,-151.0,0.00024931,7]
[387236555,1758664271450,-178.197237,0.00024931,7]
[387236556,1758664271460,-1157.48,0.00024931,3]
[387236557,1758664271469,-178.197237,0.00024931,7]
[387236558,1758664271479,-178.197237,0.00024931,7]
[387236559,1758664271488,-400.0,0.00024931,3]
[387236560,1758664271497,-178.197237,0.00024931,7]
[387236561,1758664271507,-676.36,0.00024931,3]
[387236562,1758664271516,-923.87,0.00024931,3]
[387236563,1758664271526,-1229.06,0.00024931,3]
[387236564,1758664271535,-865.69,0.00024931,3]
[387236565,1758664271544,-645.83,0.00024931,3]
[387236566,1758664271554,-400.0,0.00024931,3]
[387236567,1758664271563,-1798.6,0.00024931,3]
[387236568,1758664271573,-549.42,0.00024931,3]
[387236569,1758664271582,-400.0,0.00024931,3]
[387236570,1758664271591,-404.28,0.00024931,3]
[387236571,1758664271601,-1589.65,0.00024931,3]
[387236572,1758664271610,-559.17,0.00024931,3]
[387236573,1758664271620,-1587.3,0.00024931,3]
[387236574,1758664271630,-1163.2,0.00024931,3]
[387236575,1758664271639,-536.97,0.00024931,3]
[387236576,1758664271648,-400.0,0.00024931,3]
[387236577,1758664271658,-400.0,0.00024931,3]
[387236578,1758664271667,-400.0,0.00024931,2]
[387236579,1758664271677,-2080.14,0.00024931,3]
[387236580,1758664271686,-529.51,0.00024931,3]
[387236581,1758664271695,-931.36,0.00024931,3]
[387236582,1758664271709,-1619.96,0.00024931,3]
[387236583,1758664271719,-152.284734,0.00024931,7]
[387236584,1758664271728,-152.284734,0.00024931,7]
[387236585,1758664271738,-400.0,0.00024931,3]
[387236586,1758664271747,-152.284734,0.00024931,7]
[387236587,1758664271757,-152.284734,0.00024931,7]
[387236588,1758664271766,-13739.2,0.00024931,3]
[387236589,1758664271775,-537.83848974,0.00024931,3]
[387236590,1758664271785,-152.284734,0.00024931,7]
[387236591,1758664271795,-152.284734,0.00024931,7]
[387236592,1758664271805,-400.0,0.00024931,3]
[387236593,1758664271814,-948.64,0.00024931,3]
[387236594,1758664271824,-400.0,0.00024931,3]
[387236595,1758664271833,-152.284734,0.00024931,7]
[387236596,1758664271843,-152.284734,0.00024931,7]
[387236597,1758664271853,-1551.51,0.00024931,3]
[387236598,1758664271862,-434.3,0.00024931,3]
[387236599,1758664271872,-1871.37,0.00024931,3]
[387236600,1758664271882,-400.0,0.00024931,3]
[387236601,1758664271891,-400.0,0.00024931,3]
[387236602,1758664271901,-400.0,0.00024931,3]
[387236603,1758664271911,-618.32,0.00024931,3]
[387236604,1758664271920,-405.20351536,0.00024931,3]
[387236605,1758664271930,-400.0,0.00024931,3]
[387236606,1758664271939,-1302.85,0.00024931,3]
[387236607,1758664271950,-400.0,0.00024931,3]
[387236608,1758664271959,-400.0,0.00024931,3]
[387236609,1758664271969,-458.91,0.00024931,3]
[387236610,1758664271979,-1080.98,0.00024931,3]
[387236611,1758664271989,-657.58,0.00024931,3]
[387236612,1758664271999,-400.0,0.00024931,3]
[387236613,1758664272008,-400.0,0.00024931,3]
[387236614,1758664272017,-1848.91,0.00024931,3]
[387236615,1758664272027,-1506.02,0.00024931,3]
[387236616,1758664272036,-477.74,0.00024931,3]
[387236617,1758664272046,-400.0,0.00024931,3]
[387236618,1758664272055,-514.97,0.00024931,3]
[387236619,1758664272065,-400.0,0.00024931,3]
[387236620,1758664272075,-400.0,0.00024931,3]
[387236621,1758664272084,-400.0,0.00024931,3]
[387236622,1758664272093,-400.0,0.00024931,3]
[387236623,1758664272103,-400.0,0.00024931,3]
[387236624,1758664272112,-1395.95,0.00024931,3]
[387236625,1758664272121,-400.0,0.00024931,3]
[387236626,1758664272131,-400.0,0.00024931,3]
[387236627,1758664272140,-1575.42,0.00024931,3]
[387236628,1758664272149,-405.5819404,0.00024931,3]
[387236629,1758664272158,-400.0,0.00024931,3]
[387236630,1758664272168,-1347.82,0.00024931,3]
[387236631,1758664272178,-400.0,0.00024931,3]
[387236632,1758664272187,-1495.51,0.00024931,3]
[387236633,1758664272197,-525.32,0.00024931,3]
[387236634,1758664272206,-400.0,0.00024931,3]
[387236635,1758664272215,-1907.27,0.00024931,3]
[387236636,1758664272224,-400.0,0.00024931,3]
[387236637,1758664272234,-400.0,0.00024931,3]
[387236638,1758664272243,-151.0,0.00024931,7]
[387236639,1758664272253,-400.0,0.00024931,3]
[387236640,1758664272262,-400.0,0.00024931,3]
[387236641,1758664272272,-1023.51,0.00024931,3]
[387236642,1758664272282,-432.69,0.00024931,3]
[387236643,1758664272291,-400.0,0.00024931,3]
[387236644,1758664272301,-1903.53,0.00024931,3]
[387236645,1758664272311,-1351.02,0.00024931,3]
[387236646,1758664272321,-702.83,0.00024931,3]
[387236647,1758664272331,-400.0,0.00024931,3]
[387236648,1758664272341,-880.27,0.00024931,3]
[387236649,1758664272727,-548.79,0.00024931,3]
[387236650,1758664272742,-195.296498,0.00024931,7]
[387236651,1758664272752,-151.0,0.00024931,7]
[387236652,1758664272764,-786.35,0.00024931,3]
[387236653,1758664272774,-400.0,0.00024931,3]
[387236654,1758664272783,-451.0,0.00024931,3]
[387236655,1758664272792,-400.0,0.00024931,3]
[387236656,1758664272802,-400.0,0.00024931,3]
[387236657,1758664272811,-2096.52,0.00024931,3]
[387236658,1758664272822,-1019.97,0.00024931,3]
[387236659,1758664272832,-400.0,0.00024931,3]
[387236660,1758664272842,-400.0,0.00024931,3]
[387236661,1758664272851,-400.0,0.00024931,3]
[387236662,1758664272861,-418.47578251,0.00024931,3]
[387236663,1758664272872,-475.27,0.00024931,3]
[387236664,1758664272882,-446.059442,0.00024931,7]
[387236665,1758664272892,-1844.62,0.00024931,3]
[387236666,1758664272901,-151.0,0.00024931,7]
[387236667,1758664272911,-696.03,0.00024931,3]
[387236668,1758664272921,-419.83,0.00024931,3]
[387236669,1758664272931,-400.0,0.00024931,3]
[387236670,1758664272939,-446.059442,0.00024931,7]
[387236671,1758664272950,-500.0,0.00024931,2]
[387236672,1758664272960,-418.93280304,0.00024931,3]
[387236673,1758664272969,-601.48,0.00024931,3]
[387236674,1758664272978,-529.1,0.00024931,3]
[387236675,1758664272988,-446.059442,0.00024931,7]
[387236676,1758664272997,-1931.45,0.00024931,3]
[387236677,1758664273007,-237.871945,0.00024931,7]
[387236678,1758664273016,-2252.15,0.00024931,3]
[387236679,1758664273025,-400.0,0.00024931,3]
[387236680,1758664273034,-446.059442,0.00024931,7]
[387236681,1758664273044,-237.871945,0.00024931,7]
[387236682,1758664273053,-450.0,0.00024931,3]
[387236683,1758664273062,-400.0,0.00024931,3]
[387236684,1758664273072,-237.871945,0.00024931,7]
[387236685,1758664273081,-536.36,0.00024931,3]
[387236686,1758664273091,-516.75,0.00024931,3]
[387236687,1758664273100,-237.871945,0.00024931,7]
[387236688,1758664273109,-400.0,0.00024931,3]
[387236689,1758664273119,-400.0,0.00024931,3]
[387236690,1758664273128,-2098.36,0.00024931,3]
[387236691,1758664273138,-400.0,0.00024931,3]
[387236692,1758664273147,-1421.09,0.00024931,3]
[387236693,1758664273156,-440.91061965,0.00024931,3]
[387236694,1758664273166,-3658.05,0.00024931,3]
[387236695,1758664273175,-400.0,0.00024931,3]
[387236696,1758664273185,-400.0,0.00024931,3]
[387236697,1758664273195,-2161.44,0.00024931,3]
[387236698,1758664273204,-400.0,0.00024931,3]
[387236699,1758664273213,-620.93,0.00024931,3]
[387236700,1758664273223,-1550.42,0.00024931,3]
[387236701,1758664273232,-803.72,0.00024931,3]
[387236702,1758664273241,-400.0,0.00024931,3]
[387236703,1758664273250,-400.0,0.00024931,3]
[387236704,1758664273260,-1607.31,0.00024931,3]
[387236705,1758664273269,-1788.33,0.00024931,3]
[387236706,1758664273278,-998.12,0.00024931,3]
[387236707,1758664273287,-510.18,0.00024931,3]
[387236708,1758664273297,-2719.606076,0.00024931,7]